bitfinex/quotes_SOLUSD_20250425
["timestamp","ask_amount","ask_price","bid_price","bid_amount"]
[1745572866895,0.03,153.62,153.59,2.36396562]
[1745572867091,0.03,153.62,153.6,1.30171036]
[1745572867395,0.03,153.62,153.6,82.47171036]
[1745572867580,0.03,153.62,153.61,2.36396562]
[1745572868791,0.03,153.62,153.6,81.17]
[1745572870606,0.03,153.62,153.61,2.36400136]
[1745572871297,7.60818025,153.67,153.61,2.36400136]
[1745572871601,7.60818025,153.67,153.61,83.53400136]
[1745572872198,7.60818025,153.67,153.61,81.17]
[1745572873200,26.0,153.66,153.61,81.17]
[1745572873901,1.5076,153.63,153.56,81.17]
[1745572874400,6.0646,153.62,153.6,0.565364]
[1745572879185,6.1107,153.66,153.6,0.565364]
[1745572879389,19.3107,153.66,153.6,0.565364]
[1745572879686,26.0,153.65,153.6,0.565364]
[1745572879892,19.3107,153.66,153.6,0.565364]
[1745572880091,45.3107,153.66,153.6,0.565364]
[1745572881408,19.3107,153.66,153.6,81.735364]
[1745572882725,19.3107,153.66,153.6,88.24566622]
[1745572883011,1.5778,153.67,153.61,1.30159889]
[1745572883209,1.5778,153.67,153.61,3.661519]
[1745572883715,1.5778,153.67,153.61,84.831519]
[1745572883914,1.5778,153.67,153.62,2.35992011]
[1745572884510,1.5778,153.67,153.61,82.47159889]
[1745572886598,0.14216157,153.66,153.62,2.35991157]
[1745572886798,26.0,153.63,153.62,2.35991157]
[1745572887810,26.0,153.63,153.6,0.565364]
[1745572890798,19.5242,153.65,153.6,0.565364]
[1745572890999,45.5242,153.65,153.6,0.565364]
[1745572893415,45.5242,153.65,153.58,81.17]
[1745572897509,45.5242,153.65,153.58,81.735438]
[1745572898830,39.2,153.65,153.58,81.735438]
[1745572899127,39.2,153.65,153.58,88.24669419]
[1745572899623,39.2,153.65,153.59,2.3622326]
[1745572900526,39.2,153.65,153.6,2.3622326]
[1745572901114,13.2,153.65,153.6,2.3622326]
[1745572901308,19.3849,153.69,153.6,8.87259209]
[1745572901514,19.3849,153.69,153.61,2.3622326]
[1745572902023,19.3849,153.69,153.61,83.5322326]
[1745572902227,19.3849,153.69,153.62,2.3622326]
[1745572903306,19.3849,153.69,153.61,81.17]
[1745572904533,6.1849,153.69,153.61,87.67998805]
[1745572905527,6.1849,153.69,153.62,2.36361741]
[1745572906326,6.1849,153.69,153.63,2.36361741]
[1745572906904,6.1849,153.69,153.61,87.67999058]
[1745572907924,6.1849,153.69,153.62,2.36277549]
[1745572908232,6.1849,153.69,153.62,83.53277549]
[1745572908723,0.03,153.69,153.63,2.36277549]
[1745572910031,0.03,153.69,153.64,2.36277549]
[1745572910252,0.03,153.69,153.64,83.53277549]
[1745572910610,0.03,153.69,153.64,81.17]
[1745572916623,25.56,153.7,153.64,81.17]
[1745572917846,25.06,153.7,153.64,81.17]
[1745572920648,17.07920853,153.73,153.66,6.50787452]
[1745572920649,10.45070853,153.73,153.66,6.50787452]
[1745572920836,10.45070853,153.73,153.67,1.30104542]
[1745572922046,10.45070853,153.73,153.68,2.36012605]
[1745572922854,10.45070853,153.73,153.67,1.30104542]
[1745572924058,10.45070853,153.73,153.67,7.80838969]
[1745572925664,10.45070853,153.73,153.67,88.97838969]
[1745572926363,10.45070853,153.73,153.67,82.47104542]
[1745572927975,10.45070853,153.73,153.67,88.97840729]
[1745572928547,10.45070853,153.73,153.68,18.64964886]
[1745572928859,0.03,153.73,153.69,1.30086203]
[1745572929063,0.03,153.73,153.7,6.50618087]
[1745572929236,0.03,153.73,153.71,1.30068143]
[1745572930030,0.03,153.73,153.71,2.86818143]
[1745572931169,0.03,153.73,153.72,18.79181043]
[1745572931333,0.03,153.73,153.72,44.79181043]
[1745572931953,0.03,153.74,153.73,81.28216157]
[1745572932153,0.03,153.74,153.73,82.58252486]
[1745572933154,0.03,153.74,153.73,89.08743606]
[1745572934263,0.03,153.74,153.73,91.43533681]
[1745572935575,0.03,153.74,153.73,83.48790075]
[1745572935777,0.03,153.74,153.73,81.14]
[1745572942089,0.0087902,153.74,153.73,81.14]
[1745572948987,0.0087902,153.74,153.73,82.4405907]
[1745572950168,0.0087902,153.74,153.73,84.79123308]
[1745572951178,0.0087902,153.74,153.73,82.4405907]
[1745572952196,13.20640626,153.8,153.73,82.4405907]
[1745572952500,0.02640626,153.8,153.73,88.94540672]
[1745572952814,0.02640626,153.8,153.74,2.35126351]
[1745572953481,0.02640626,153.8,153.73,90.51590672]
[1745572954984,0.02640626,153.8,153.74,2.35113452]
[1745572955971,0.02640626,153.8,153.73,90.51590672]
[1745572957807,0.02640626,153.8,153.74,2.351858]
[1745572958906,0.02640626,153.8,153.73,90.51590672]
[1745572959506,5.77239029,153.83,153.73,90.51590672]
[1745572960329,5.77239029,153.83,153.74,18.64964886]
[1745572961289,5.77239029,153.83,153.74,25.15387011]
[1745572962101,5.77239029,153.83,153.75,2.35422365]
[1745572962999,5.77239029,153.83,153.74,25.15387011]
[1745572963812,5.77239029,153.83,153.74,106.29387011]
[1745572964130,5.77239029,153.83,153.74,132.29387011]
[1745572964605,5.77239029,153.83,153.75,2.35744755]
[1745572965315,5.77239029,153.83,153.76,2.35744755]
[1745572965488,5.77239029,153.83,153.76,2.25744755]
[1745572966302,0.14216157,153.82,153.74,81.14]
[1745572966503,1.6244,153.81,153.74,81.14]
[1745572967486,0.14216157,153.8,153.74,81.14]
[1745572967807,0.14216157,153.8,153.69,107.8184288]
[1745572968801,26.14216157,153.8,153.69,107.8184288]
[1745572973014,13.16,153.79,153.69,107.8184288]
[1745572975393,13.16,153.79,153.69,81.14]
[1745572975394,32.5596,153.77,153.69,81.14]
[1745572977719,32.5596,153.77,153.7,2.3592403]
[1745572978717,32.5596,153.77,153.69,81.14]
[1745572981624,32.5596,153.77,153.7,2.35819125]
[1745572982329,32.5596,153.77,153.71,2.35819125]
[1745572983127,32.5596,153.77,153.69,81.14]
[1745572984326,32.5596,153.77,153.7,2.35792054]
[1745572985031,32.5596,153.77,153.69,81.14]
[1745572986932,32.5596,153.77,153.7,2.35736337]
[1745572987304,32.5596,153.77,153.7,83.49736337]
[1745572987517,32.5596,153.77,153.7,81.14]
[1745572988709,13.16,153.79,153.71,3.65781059]
[1745572989929,13.16,153.79,153.72,2.35685062]
[1745572990627,13.16,153.79,153.72,81.14]
[1745572991843,13.16,153.79,153.72,87.6451707]
[1745572992638,13.16,153.79,153.73,2.35659998]
[1745572992853,13.16,153.79,153.73,83.49659998]
[1745572993063,9.71096843,153.8,153.73,90.00130731]
[1745572993334,9.71096843,153.8,153.73,83.49659998]
[1745572993738,9.71096843,153.8,153.74,2.35659998]
[1745572994817,9.71096843,153.8,153.73,81.14]
[1745572996822,9.71096843,153.8,153.74,2.35659198]
[1745572997424,9.71096843,153.8,153.73,81.14]
[1745572999941,9.71096843,153.8,153.74,2.35721822]
[1745573001142,9.71096843,153.8,153.73,81.14]
[1745573002740,9.71096843,153.8,153.74,2.35777263]
[1745573003641,9.71096843,153.8,153.73,81.14]
[1745573005749,9.71096843,153.8,153.74,2.35849983]
[1745573006550,9.71096843,153.8,153.73,81.14]
[1745573007145,9.71096843,153.8,153.73,87.64470717]
[1745573008342,9.71096843,153.8,153.74,2.35929689]
[1745573008539,13.16,153.83,153.76,26.0]
[1745573008854,13.16,153.83,153.76,107.14]
[1745573009242,0.03,153.85,153.79,44.64964886]
[1745573009558,0.03,153.85,153.81,18.64964886]
[1745573009727,0.03,153.85,153.81,99.78964886]
[1745573010649,0.03,153.85,153.82,1.29979897]
[1745573011647,0.03,153.85,153.82,7.80083969]
[1745573012549,0.03,153.85,153.82,6.50104072]
[1745573012753,0.03,153.85,153.81,81.14]
[1745573013752,0.03,153.85,153.79,7.80235777]
[1745573014961,0.03,153.85,153.79,1.30005416]
[1745573015456,0.03,153.85,153.79,81.14]
[1745573023635,0.03,153.85,153.79,87.64232239]
[1745573023836,0.03,153.85,153.8,1.30003088]
[1745573024461,0.03,153.85,153.8,7.80163327]
[1745573025452,0.03,153.85,153.8,88.94163327]
[1745573026268,0.03,153.85,153.8,82.44003088]
[1745573026938,0.03,153.85,153.8,81.14]
[1745573028069,0.03,153.85,153.81,1.30007007]
[1745573028264,0.03,153.85,153.8,87.6418369]
[1745573028468,0.03,153.85,153.8,81.14]
[1745573031369,0.03,153.85,153.8,82.44006152]
[1745573033457,0.03,153.85,153.8,88.94198715]
[1745573033656,0.03,153.85,153.8,82.44006152]
[1745573034263,0.03,153.85,153.8,88.94197209]
[1745573037559,0.03,153.85,153.81,18.64964886]
[1745573037861,0.03,153.85,153.81,99.78964886]
[1745573038277,0.03,153.85,153.81,106.29116435]
[1745573039884,0.03,153.85,153.81,99.78964886]
[1745573043482,0.03,153.85,153.81,106.29116746]
[1745573043683,0.03,153.85,153.81,99.78964886]
[1745573044186,0.03,153.85,153.81,106.29105558]
[1745573044395,0.03,153.85,153.81,99.78964886]
[1745573044755,0.03,153.85,153.81,106.29114622]
[1745573045474,0.03,153.85,153.81,99.78964886]
[1745573046653,0.03,153.85,153.81,107.59093289]
[1745573046856,0.03,153.85,153.81,101.0894522]
[1745573047185,0.03,153.85,153.82,2.35510604]
[1745573048065,0.03,153.85,153.79,81.14]
[1745573050676,26.0,153.82,153.73,81.704886]
[1745573050868,1.5305,153.81,153.74,2.35903903]
[1745573051452,1.5305,153.81,153.75,2.35903903]
[1745573052283,1.5305,153.81,153.74,2.35903903]
[1745573052982,19.1977,153.8,153.73,81.704886]
[1745573055985,13.14,153.8,153.73,81.704886]
[1745573057792,13.14,153.8,153.74,2.35502546]
[1745573058401,13.14,153.8,153.73,81.704886]
[1745573058980,13.14,153.8,153.73,88.2097698]
[1745573059993,13.14,153.8,153.74,2.35445498]
[1745573060499,13.14,153.8,153.73,81.704886]
[1745573061607,18.79181043,153.79,153.73,81.704886]
[1745573062389,44.79181043,153.79,153.73,81.704886]
[1745573062599,26.14216157,153.79,153.73,81.704886]
[1745573063501,26.14216157,153.79,153.73,0.564886]
[1745573065703,26.14216157,153.79,153.73,0.253886]
[1745573070299,0.14216157,153.77,153.73,0.253886]
[1745573071803,26.0,153.79,153.73,0.253886]
[1745573072581,13.28216157,153.8,153.73,0.253886]
[1745573072948,39.14,153.8,153.73,0.253886]
[1745573078219,39.14,153.8,153.73,81.393886]
[1745573084004,13.14,153.8,153.73,81.393886]
[1745573084314,20.26764886,153.85,153.74,1.6077]
[1745573084514,13.14,153.84,153.74,89.25181846]
[1745573085930,13.14,153.84,153.75,2.35258748]
[1745573086648,13.14,153.84,153.76,2.35258748]
[1745573086840,0.14216157,153.83,153.76,2.35258748]
[1745573087350,44.79181043,153.83,153.74,81.14]
[1745573090913,13.14,153.82,153.74,81.14]
[1745573091302,13.14,153.82,153.75,2.35752923]
[1745573092130,13.14,153.82,153.76,2.35752923]
[1745573092908,13.14,153.82,153.76,83.49752923]
[1745573093222,13.14,153.82,153.76,85.03612923]
[1745573093416,13.14,153.82,153.77,2.35752923]
[1745573094211,13.14,153.82,153.76,89.18222881]
[1745573095040,13.14,153.82,153.76,82.6786]
[1745573095822,13.14,153.82,153.77,2.36027304]
[1745573096509,13.14,153.82,153.76,81.14]
[1745573097832,13.14,153.82,153.76,87.64354386]
[1745573098030,13.14,153.82,153.77,2.35978432]
[1745573098234,27.618,153.85,153.77,2.35978432]
[1745573098904,27.618,153.85,153.77,81.14]
[1745573101120,27.618,153.85,153.78,2.35941265]
[1745573101940,27.618,153.85,153.77,81.14]
[1745573107442,0.03,153.85,153.77,87.64312427]
[1745573107918,0.03,153.85,153.78,2.35792494]
[1745573108913,0.03,153.85,153.77,87.64312427]
[1745573110333,0.03,153.85,153.77,81.14]
[1745573110536,0.03,153.85,153.78,2.35731709]
[1745573111729,0.03,153.85,153.77,81.14]
[1745573119252,18.72208868,153.86,153.78,2.36024873]
[1745573119736,18.72208868,153.86,153.77,81.14]
[1745573120749,26.0,153.84,153.77,81.14]
[1745573121653,26.0,153.84,153.78,2.36118984]
[1745573122033,26.0,153.84,153.77,81.14]
[1745573123156,26.0,153.84,153.78,2.36134779]
[1745573123651,26.0,153.86,153.78,2.36134779]
[1745573124032,26.0,153.86,153.79,2.36134779]
[1745573125471,26.0,153.86,153.78,1.5374]
[1745573125956,13.17,153.87,153.79,6.3431]
[1745573126537,13.17,153.87,153.8,2.36124268]
[1745573127041,0.03,153.87,153.8,2.36124268]
[1745573127241,0.03,153.87,153.81,2.36124268]
[1745573128364,0.03,153.87,153.79,95.5390126]
[1745573129436,0.03,153.87,153.8,2.36097384]
[1745573130758,0.03,153.87,153.81,2.36097384]
[1745573131166,0.03,153.87,153.81,81.14]
[1745573139458,26.0,153.86,153.78,82.6774]
[1745573139767,26.0,153.86,153.78,81.14]
[1745573139959,18.79181043,153.85,153.78,81.14]
[1745573140153,18.79181043,153.85,153.79,2.35973834]
[1745573140949,1.5751,153.84,153.79,2.35973834]
[1745573141147,1.5751,153.84,153.75,82.7611]
[1745573142275,26.0,153.82,153.76,2.36018118]
[1745573143173,26.0,153.82,153.74,0.063]
[1745573143356,13.12,153.81,153.74,81.203]
[1745573143983,13.12,153.81,153.75,2.35984614]
[1745573144878,13.12,153.81,153.74,81.203]
[1745573146474,13.12,153.81,153.75,2.35904446]
[1745573146985,13.12,153.81,153.74,81.45687]
[1745573148691,13.12,153.81,153.75,2.35844849]
[1745573149888,13.12,153.81,153.74,81.45687]
[1745573151580,13.12,153.81,153.75,2.35798506]
[1745573152385,13.12,153.81,153.74,81.45687]
[1745573154059,13.12,153.81,153.74,0.31687]
[1745573154060,18.79181043,153.8,153.74,0.31687]
[1745573157370,13.12,153.81,153.74,0.31687]
[1745573171682,18.79181043,153.8,153.74,0.31687]
[1745573171887,26.0,153.79,153.74,0.31687]
[1745573184600,18.79181043,153.78,153.74,0.31687]
[1745573185601,26.0,153.75,153.74,0.31687]
[1745573185791,57.91181043,153.75,153.74,0.31687]
[1745573192709,57.91181043,153.75,153.69,0.063]
[1745573205532,13.12,153.75,153.69,6.0724]
[1745573205713,13.12,153.79,153.69,87.2124]
[1745573205918,26.0,153.78,153.7,2.35803507]
[1745573207130,18.79181043,153.78,153.71,2.35803507]
[1745573207303,18.79181043,153.75,153.71,2.35803507]
[1745573208103,18.79181043,153.75,153.69,0.063]
[1745573209841,31.91181043,153.75,153.69,0.063]
[1745573220449,31.51722883,153.75,153.69,0.063]
[1745573222963,13.12,153.75,153.69,0.063]
[1745573223469,13.12,153.75,153.7,2.36362719]
[1745573223961,13.12,153.75,153.71,2.36362719]
[1745573224968,26.0,153.76,153.69,0.063]
[1745573224969,39.12,153.76,153.69,0.063]
[1745573225952,39.12,153.76,153.7,2.3641035]
[1745573226350,39.12,153.76,153.71,2.3641035]
[1745573226871,39.12,153.76,153.69,0.063]
[1745573227979,39.12,153.76,153.7,2.36445537]
[1745573228679,13.12,153.8,153.71,7.5463]
[1745573228846,13.12,153.8,153.71,88.6863]
[1745573229048,26.0,153.79,153.72,2.36445537]
[1745573229667,13.12,153.8,153.73,2.36445537]
[1745573229974,26.0,153.79,153.73,2.36445537]
[1745573230867,26.0,153.79,153.74,2.36445537]
[1745573231587,26.0,153.79,153.75,2.36445537]
[1745573231946,13.12,153.8,153.76,26.0]
[1745573232578,13.12,153.8,153.75,2.36445537]
[1745573232770,13.12,153.8,153.75,26.0]
[1745573233369,13.12,153.8,153.74,26.0]
[1745573235775,13.12,153.8,153.71,88.6863]
[1745573236176,13.12,153.8,153.74,26.0]
[1745573243087,13.12,153.8,153.72,32.50492863]
[1745573244278,13.12,153.8,153.73,2.3559358]
[1745573244984,13.12,153.8,153.72,32.50492863]
[1745573245580,13.12,153.8,153.72,113.64492863]
[1745573246671,13.12,153.8,153.73,8.86063677]
[1745573247587,13.12,153.8,153.73,6.50485726]
[1745573248267,13.12,153.8,153.72,113.64520182]
[1745573248901,13.12,153.8,153.73,2.35581413]
[1745573249571,13.12,153.8,153.72,113.64520182]
[1745573251486,13.12,153.8,153.73,2.35595878]
[1745573252201,13.12,153.8,153.74,2.35595878]
[1745573253278,13.12,153.8,153.73,6.50484827]
[1745573255287,13.12,153.8,153.74,2.35586752]
[1745573256191,13.12,153.8,153.72,87.64526326]
[1745573256895,13.12,153.8,153.73,2.35604076]
[1745573257277,13.12,153.8,153.73,8.86092655]
[1745573258001,13.12,153.8,153.74,2.35604076]
[1745573259980,13.12,153.8,153.73,2.35604076]
[1745573260195,13.12,153.8,153.73,8.86089394]
[1745573261101,13.12,153.8,153.74,2.35604076]
[1745573261978,13.12,153.8,153.73,6.50485318]
[1745573262390,13.12,153.8,153.73,7.80550912]
[1745573262594,26.00840164,153.82,153.73,7.80550912]
[1745573263399,26.00840164,153.82,153.74,1.5518]
[1745573263703,26.00840164,153.82,153.74,3.91022344]
[1745573264220,26.00840164,153.82,153.75,8.86248848]
[1745573264376,26.00840164,153.82,153.75,90.00248848]
[1745573265309,26.00840164,153.82,153.76,2.35842344]
[1745573266110,26.00840164,153.82,153.75,87.64406504]
[1745573266400,26.00840164,153.82,153.76,7.8772086]
[1745573266590,0.03,153.82,153.76,7.8772086]
[1745573266995,0.03,153.82,153.77,2.35894251]
[1745573267490,0.03,153.82,153.78,2.35894251]
[1745573268506,0.03,153.82,153.79,8.86131587]
[1745573269392,0.03,153.82,153.77,6.50321909]
[1745573270114,0.03,153.82,153.78,2.35872531]
[1745573270417,0.03,153.82,153.79,1.6189]
[1745573270604,0.03,153.82,153.8,6.50195058]
[1745573272018,0.03,153.82,153.81,2.35805631]
[1745573273007,0.03,153.82,153.76,32.5768]
[1745573273185,0.03,153.82,153.76,39.08014313]
[1745573273985,0.03,153.82,153.77,2.35823006]
[1745573274919,0.03,153.82,153.78,2.35823006]
[1745573275104,0.03,153.82,153.78,8.86087561]
[1745573275809,0.03,153.82,153.79,2.35823006]
[1745573276827,0.03,153.82,153.77,6.50321909]
[1745573277797,0.03,153.82,153.78,2.35695077]
[1745573278524,0.03,153.82,153.79,2.35695077]
[1745573279048,0.03,153.82,153.8,8.03545058]
[1745573279195,0.03,153.82,153.81,25.08774886]
[1745573279405,0.03,153.82,153.81,27.44469963]
[1745573280029,0.03,153.86,153.81,27.44469963]
[1745573280247,0.03,153.86,153.82,2.35695077]
[1745573281419,0.03,153.86,153.83,8.85763334]
[1745573282234,0.03,153.86,153.82,6.50110518]
[1745573283155,0.03,153.86,153.82,103.89386814]
[1745573283708,0.03,153.86,153.83,2.35132227]
[1745573284642,0.03,153.86,153.82,103.89386814]
[1745573285012,0.03,153.86,153.82,87.64110518]
[1745573289761,0.03,153.86,153.81,6.50140235]
[1745573291802,0.03,153.86,153.84,26.0]
[1745573291978,1.14402632,153.93,153.84,26.0]
[1745573292275,1.14402632,153.93,153.84,107.14]
[1745573292604,1.14402632,153.93,153.85,2.34648094]
[1745573292750,26.0,153.91,153.85,2.34648094]
[1745573293359,26.0,153.91,153.84,81.14]
[1745573295472,26.0,153.91,153.82,6.50105115]
[1745573295677,0.14216157,153.92,153.83,2.34627357]
[1745573296476,0.14216157,153.92,153.84,2.34627357]
[1745573297471,0.14216157,153.92,153.83,6.50046557]
[1745573298546,0.14216157,153.92,153.82,6.50110518]
[1745573298951,0.14216157,153.92,153.83,2.34588173]
[1745573299960,0.14216157,153.92,153.82,6.50110518]
[1745573300762,0.14216157,153.92,153.82,13.57084437]
[1745573301277,27.14402632,153.93,153.83,18.64964886]
[1745573301436,27.14402632,153.93,153.83,28.06574669]
[1745573301840,27.14402632,153.93,153.83,9.41609783]
[1745573302147,0.14216157,153.92,153.84,2.34635864]
[1745573302524,26.0,153.91,153.84,2.34635864]
[1745573302847,26.0,153.91,153.83,6.50064453]
[1745573304446,26.0,153.91,153.84,2.34769526]
[1745573305034,26.0,153.91,153.85,6.4998375]
[1745573307446,26.0,153.91,153.86,2.34966561]
[1745573307852,26.0,153.91,153.86,8.8490568]
[1745573308230,26.0,153.91,153.83,25.15033143]
[1745573308547,14.22402632,153.93,153.83,41.40203785]
[1745573308751,14.22402632,153.93,153.84,1.587]
[1745573309252,14.22402632,153.93,153.85,2.3496105]
[1745573309945,14.22402632,153.93,153.86,8.8489663]
[1745573310446,13.11,153.93,153.86,8.8489663]
[1745573310658,13.11,153.93,153.86,89.9889663]
[1745573310955,0.03,153.93,153.86,87.6393558]
[1745573311633,0.03,153.93,153.87,2.35118318]
[1745573312241,0.03,153.93,153.86,81.14]
[1745573312448,6.92002618,153.9,153.86,81.14]
[1745573312651,0.03,153.93,153.86,81.14]
[1745573312652,6.92002618,153.89,153.86,81.14]
[1745573312842,6.92002618,153.89,153.85,20.00002618]
[1745573313348,6.92002618,153.89,153.86,2.35148842]
[1745573314452,6.92002618,153.9,153.87,2.35148842]
[1745573315130,6.92002618,153.91,153.86,2.35148842]
[1745573315649,6.92002618,153.91,153.87,2.35148842]
[1745573316663,6.92002618,153.92,153.87,2.35148842]
[1745573316955,6.92002618,153.92,153.86,8.85088932]
[1745573317656,6.92002618,153.92,153.88,6.92002618]
[1745573317838,6.92002618,153.92,153.87,9.2715146]
[1745573318364,6.92002618,153.92,153.87,6.92002618]
[1745573319656,6.92002618,153.91,153.87,6.92002618]
[1745573320056,6.92002618,153.9,153.85,6.49969365]
[1745573320264,6.92002618,153.9,153.85,6.92002618]
[1745573320461,6.92002618,153.89,153.85,6.92002618]
[1745573320767,6.92002618,153.89,153.86,2.35546438]
[1745573321759,6.92002618,153.89,153.87,2.35546438]
[1745573322156,6.92002618,153.88,153.87,2.35546438]
[1745573322562,6.92002618,153.88,153.83,2.35546438]
[1745573322861,6.92002618,153.86,153.83,2.35546438]
[1745573323364,6.92002618,153.86,153.84,2.35546438]
[1745573324069,6.92002618,153.86,153.85,2.35546438]
[1745573324253,6.92002618,153.87,153.85,2.35546438]
[1745573325145,1.5384,153.92,153.85,2.35546438]
[1745573325341,6.92002618,153.89,153.86,2.35546438]
[1745573325749,6.92002618,153.91,153.86,9.27549056]
[1745573325950,6.92002618,153.91,153.86,15.77484962]
[1745573326350,0.03,153.93,153.87,2.35546438]
[1745573326545,6.92002618,153.91,153.87,2.35546438]
[1745573327270,6.92002618,153.91,153.88,2.35546438]
[1745573328069,6.92002618,153.9,153.88,2.35546438]
[1745573328276,6.92002618,153.9,153.86,81.2]
[1745573328653,6.92002618,153.9,153.87,2.3595584]
[1745573328851,0.03,153.93,153.87,2.3595584]
[1745573329068,6.92002618,153.89,153.87,2.3595584]
[1745573329442,6.92002618,153.89,153.88,2.3595584]
[1745573332876,6.92002618,153.9,153.88,2.3595584]
[1745573333778,6.92002618,153.9,153.86,6.92002618]
[1745573334078,6.92002618,153.9,153.85,13.41981072]
[1745573334683,6.92002618,153.89,153.85,6.92002618]
[1745573334855,6.92002618,153.88,153.84,89.68572618]
[1745573335061,6.92002618,153.88,153.86,2.36111042]
[1745573335881,6.92002618,153.88,153.87,2.36111042]
[1745573339871,6.92002618,153.88,153.87,2.36246629]
[1745573341282,1.6013,153.91,153.87,2.36246629]
[1745573341493,6.92002618,153.9,153.87,2.36246629]
[1745573341673,6.92002618,153.91,153.87,2.36246629]
[1745573341989,6.92002618,153.91,153.88,2.36246629]
[1745573343208,6.92002618,153.91,153.89,2.36246629]
[1745573343569,6.92002618,153.92,153.89,2.36246629]
[1745573344171,6.92002618,153.92,153.87,6.92002618]
[1745573344991,6.92002618,153.92,153.88,2.36224317]
[1745573345200,6.92002618,153.91,153.88,2.36224317]
[1745573346076,6.92002618,153.91,153.89,2.36224317]
[1745573346691,6.92002618,153.91,153.9,2.36224317]
[1745573348581,6.92002618,153.91,153.87,6.92002618]
[1745573349792,6.92002618,153.91,153.88,2.36218073]
[1745573350587,6.92002618,153.91,153.89,2.36218073]
[1745573351388,6.92002618,153.91,153.9,2.36218073]
[1745573352810,6.92002618,153.91,153.86,13.4193496]
[1745573353010,6.92002618,153.9,153.86,13.4193496]
[1745573353377,6.92002618,153.9,153.87,2.36207717]
[1745573354695,6.92002618,153.9,153.88,2.36207717]
[1745573355380,6.92002618,153.9,153.89,2.36207717]
[1745573356409,6.92002618,153.91,153.89,2.36207717]
[1745573356610,6.92002618,153.91,153.9,2.36207717]
[1745573357287,0.03,153.93,153.9,2.36207717]
[1745573357476,6.92002618,153.91,153.87,13.41896783]
[1745573358513,6.92002618,153.91,153.88,2.36200215]
[1745573359615,6.92002618,153.91,153.89,2.36200215]
[1745573360615,0.03,153.93,153.89,8.86011245]
[1745573360786,0.03,153.93,153.9,9.28202833]
[1745573361202,0.03,153.93,153.9,3.87030215]
[1745573361591,0.03,153.93,153.9,10.36782592]
[1745573361789,0.03,153.93,153.91,2.36200215]
[1745573362607,0.03,153.93,153.92,2.36200215]
[1745573363218,6.95002618,153.93,153.92,2.36200215]
[1745573365011,6.95002618,153.93,153.9,6.49770587]
[1745573366103,0.03,153.93,153.91,9.27824978]
[1745573366683,0.03,153.93,153.92,2.3582236]
[1745573370301,6.95002618,153.93,153.92,2.3582236]
[1745573371915,6.95002618,153.93,153.89,13.41798224]
[1745573372818,6.95002618,153.93,153.9,2.35685976]
[1745573373801,6.95002618,153.93,153.91,2.35685976]
[1745573374517,6.95002618,153.93,153.89,13.41798224]
[1745573375012,6.95002618,153.93,153.9,2.35660646]
[1745573375718,6.95002618,153.93,153.91,2.35660646]
[1745573376112,0.03,153.93,153.91,2.35660646]
[1745573376622,0.03,153.93,153.9,6.4977243]
[1745573377315,0.03,153.93,153.9,13.41775048]
[1745573377615,0.03,153.93,153.91,6.92002618]
[1745573377816,0.03,153.93,153.92,6.92002618]
[1745573378621,0.03,153.93,153.91,13.41712067]
[1745573378926,0.03,153.93,153.92,2.35632954]
[1745573379118,0.03,153.93,153.92,9.27635572]
[1745573379809,0.03,153.93,153.92,15.77323721]
[1745573380212,0.03,153.93,153.92,34.42288607]
[1745573383419,0.03,153.93,153.92,115.62288607]
[1745573389627,0.03,153.93,153.92,115.61993969]
[1745573391921,0.03,153.93,153.92,115.76210126]
[1745573393034,0.03,153.93,153.92,90.05026465]
[1745573393223,0.03,153.93,153.92,83.55338316]
[1745573395124,0.03,153.93,153.92,8.85026465]
[1745573395330,0.03,153.93,153.92,15.77029083]
[1745573400523,0.03,153.93,153.92,34.41993969]
[1745573400824,0.03,153.93,153.92,115.61993969]
[1745573403269,0.03,153.93,153.92,96.97029083]